[Event "*** Titled Tuesday Blitz"]
[Site "Chess.com"]
[Date "2020.11.10"]
[Round "3"]
[White "Infernal_XaM"]
[Black "juancruzarias"]
[Result "1-0"]
[WhiteElo "2822"]
[BlackElo "2576"]
[TimeControl "180+1"]
[EndTime "10:33:09 PST"]
[Termination "Infernal_XaM won on time"]

1. d4 {[%clk 0:03:00.9]} 1... e6 {[%clk 0:02:57.8]} 2. c4 {[%clk 0:03:01.8]}
2... Nf6 {[%clk 0:02:57.8]} 3. Nc3 {[%clk 0:03:01.4]} 3... Bb4 {[%clk
0:02:57.6]} 4. e3 {[%clk 0:03:01.6]} 4... b6 {[%clk 0:02:57.5]} 5. Ne2 {[%clk
0:03:00]} 5... Ne4 {[%clk 0:02:54.2]} 6. Qc2 {[%clk 0:02:56.9]} 6... Bb7 {[%clk
0:02:50.9]} 7. a3 {[%clk 0:02:47.7]} 7... Bxc3+ {[%clk 0:02:46.1]} 8. Nxc3
{[%clk 0:02:47.6]} 8... f5 {[%clk 0:02:45.2]} 9. Bd3 {[%clk 0:02:43]} 9... Nxc3
{[%clk 0:02:39.8]} 10. Qxc3 {[%clk 0:02:42.9]} 10... O-O {[%clk 0:02:40.4]} 11.
O-O {[%clk 0:02:40.5]} 11... d6 {[%clk 0:02:37.5]} 12. b4 {[%clk 0:02:29]} 12...
Nd7 {[%clk 0:02:37.3]} 13. Bb2 {[%clk 0:02:29]} 13... Qg5 {[%clk 0:02:33.7]} 14.
d5 {[%clk 0:02:19.4]} 14... e5 {[%clk 0:02:32.3]} 15. f4 {[%clk 0:02:14.1]}
15... Qg6 {[%clk 0:02:26.7]} 16. Rf3 {[%clk 0:02:06.4]} 16... Rae8 {[%clk
0:02:22]} 17. Raf1 {[%clk 0:02:04.4]} 17... Bc8 {[%clk 0:02:00.2]} 18. Rg3
{[%clk 0:01:39.9]} 18... Qh6 {[%clk 0:01:59.9]} 19. Qc2 {[%clk 0:01:38.7]} 19...
g6 {[%clk 0:01:51.8]} 20. Bxf5 {[%clk 0:01:33.6]} 20... Nf6 {[%clk 0:01:39.2]}
21. Bxg6 {[%clk 0:01:31.6]} 21... Ng4 {[%clk 0:01:31.3]} 22. Rxg4 {[%clk
0:01:29.1]} 22... Bxg4 {[%clk 0:01:30.4]} 23. Bxe8 {[%clk 0:01:29.4]} 23... Rxe8
{[%clk 0:01:30.3]} 24. Qf2 {[%clk 0:01:18.6]} 24... Rf8 {[%clk 0:01:22.5]} 25.
Qg3 {[%clk 0:01:18.1]} 25... Qg6 {[%clk 0:01:22.2]} 26. h3 {[%clk 0:01:16]}
26... Be2 {[%clk 0:01:19.4]} 27. Qxg6+ {[%clk 0:01:14.2]} 27... hxg6 {[%clk
0:01:20.3]} 28. Re1 {[%clk 0:00:59.1]} 28... Bxc4 {[%clk 0:01:19.7]} 29. Rc1
{[%clk 0:00:58.9]} 29... b5 {[%clk 0:01:18.6]} 30. fxe5 {[%clk 0:00:58.6]} 30...
dxe5 {[%clk 0:01:17.9]} 31. Bxe5 {[%clk 0:00:58.2]} 31... Rf5 {[%clk 0:01:06.3]}
32. Bxc7 {[%clk 0:00:42.9]} 32... Rxd5 {[%clk 0:01:06.3]} 33. a4 {[%clk
0:00:37.1]} 33... a6 {[%clk 0:01:05.1]} 34. axb5 {[%clk 0:00:37]} 34... axb5
{[%clk 0:01:06]} 35. Bb6 {[%clk 0:00:37.3]} 35... Rd2 {[%clk 0:01:05.3]} 36. Re1
{[%clk 0:00:33.7]} 36... Kf7 {[%clk 0:00:52.2]} 37. e4 {[%clk 0:00:33.1]} 37...
Ke6 {[%clk 0:00:48.4]} 38. Kh2 {[%clk 0:00:29.3]} 38... Rd3 {[%clk 0:00:31.6]}
39. Bc5 {[%clk 0:00:23.1]} 39... Rb3 {[%clk 0:00:31.3]} 40. Kg1 {[%clk
0:00:18.9]} 40... Rb2 {[%clk 0:00:30.7]} 41. Kh2 {[%clk 0:00:19.4]} 41... Rb3
{[%clk 0:00:30.9]} 42. Rd1 {[%clk 0:00:14.9]} 42... Ke5 {[%clk 0:00:30.7]} 43.
Rd6 {[%clk 0:00:15]} 43... Be6 {[%clk 0:00:25.8]} 44. Rb6 {[%clk 0:00:14.2]}
44... Bd7 {[%clk 0:00:17]} 45. Rxg6 {[%clk 0:00:13.9]} 45... Kxe4 {[%clk
0:00:17.6]} 46. h4 {[%clk 0:00:13.9]} 46... Kf5 {[%clk 0:00:16.2]} 47. Rg5+
{[%clk 0:00:13.5]} 47... Kf6 {[%clk 0:00:16.3]} 48. Bd4+ {[%clk 0:00:13.2]}
48... Ke6 {[%clk 0:00:16.7]} 49. Bc5 {[%clk 0:00:12.8]} 49... Bc6 {[%clk
0:00:16.1]} 50. h5 {[%clk 0:00:12.7]} 50... Kf7 {[%clk 0:00:14.7]} 51. g4 {[%clk
0:00:10.6]} 51... Be4 {[%clk 0:00:08.8]} 52. Re5 {[%clk 0:00:10.1]} 52... Bc6
{[%clk 0:00:08.5]} 53. g5 {[%clk 0:00:10.2]} 53... Rb2+ {[%clk 0:00:07.6]} 54.
Kg3 {[%clk 0:00:09.7]} 54... Rg2+ {[%clk 0:00:08]} 55. Kf4 {[%clk 0:00:09.1]}
55... Rh2 {[%clk 0:00:08.9]} 56. Re7+ {[%clk 0:00:07.8]} 56... Kg8 {[%clk
0:00:09.6]} 57. Kg4 {[%clk 0:00:06.1]} 57... Rg2+ {[%clk 0:00:08.8]} 58. Kf5
{[%clk 0:00:06.4]} 58... Bf3 {[%clk 0:00:01.5]} 59. Kg6 {[%clk 0:00:06]} 59...
Bc6 {[%clk 0:00:01]} 60. Kh6 {[%clk 0:00:04.7]} 1-0

[Event "*** Titled Tuesday Blitz"]
[Site "Chess.com"]
[Date "2020.11.10"]
[Round "3"]
[White "PawnEatingZombie"]
[Black "Vamostodorecto"]
[Result "0-1"]
[WhiteElo "2171"]
[BlackElo "2351"]
[TimeControl "180+1"]
[EndTime "10:33:13 PST"]
[Termination "Vamostodorecto won by resignation"]

1. d4 {[%clk 0:03:00.9]} 1... Nf6 {[%clk 0:02:59.1]} 2. c4 {[%clk 0:03:00.8]}
2... g6 {[%clk 0:02:59.6]} 3. Nc3 {[%clk 0:03:01.1]} 3... d5 {[%clk 0:02:59.2]}
4. cxd5 {[%clk 0:03:00.7]} 4... Nxd5 {[%clk 0:03:00.1]} 5. e4 {[%clk 0:03:01]}
5... Nb6 {[%clk 0:02:59.1]} 6. Nf3 {[%clk 0:02:57.4]} 6... Bg7 {[%clk
0:02:58.1]} 7. h3 {[%clk 0:02:53.9]} 7... O-O {[%clk 0:02:58.8]} 8. Be2 {[%clk
0:02:52.4]} 8... Nc6 {[%clk 0:02:47.8]} 9. Be3 {[%clk 0:02:49.6]} 9... f5 {[%clk
0:02:46.8]} 10. Qb3+ {[%clk 0:02:37.9]} 10... Kh8 {[%clk 0:02:45.3]} 11. exf5
{[%clk 0:02:19.4]} 11... Bxf5 {[%clk 0:02:46.2]} 12. Rd1 {[%clk 0:02:10.9]}
12... a5 {[%clk 0:02:39.1]} 13. Ng5 {[%clk 0:02:03.7]} 13... Qe8 {[%clk
0:02:21.8]} 14. a4 {[%clk 0:01:42.6]} 14... Nb4 {[%clk 0:02:19.5]} 15. O-O
{[%clk 0:01:41.9]} 15... Bc2 {[%clk 0:02:17.9]} 16. Qa3 {[%clk 0:01:36.1]} 16...
Bxd1 {[%clk 0:02:15.9]} 17. Rxd1 {[%clk 0:01:35.5]} 17... Nc2 {[%clk 0:02:13.7]}
18. Qb3 {[%clk 0:01:35.1]} 18... Nxe3 {[%clk 0:02:14.1]} 19. fxe3 {[%clk
0:01:35.6]} 19... e5 {[%clk 0:02:13.3]} 20. Nb5 {[%clk 0:01:31.4]} 20... Qe7
{[%clk 0:02:08.6]} 21. h4 {[%clk 0:01:22]} 21... exd4 {[%clk 0:01:56.4]} 22. Ne6
{[%clk 0:01:17.5]} 22... dxe3 {[%clk 0:01:43.5]} 23. Nbxc7 {[%clk 0:01:13.6]}
23... Qxh4 {[%clk 0:01:34.6]} 24. Qxe3 {[%clk 0:01:03.3]} 24... Nxa4 {[%clk
0:00:59.1]} 25. Nxa8 {[%clk 0:00:56.6]} 25... Rxa8 {[%clk 0:00:59.6]} 26. Nxg7
{[%clk 0:00:56]} 26... Kxg7 {[%clk 0:01:00]} 27. Rd4 {[%clk 0:00:50.4]} 27...
Qe1+ {[%clk 0:00:55.5]} 28. Kh2 {[%clk 0:00:50.8]} 28... Nb6 {[%clk 0:00:47.9]}
29. Qe7+ {[%clk 0:00:43.8]} 29... Kg8 {[%clk 0:00:44.7]} 30. Bc4+ {[%clk
0:00:40.7]} 30... Nxc4 {[%clk 0:00:43.6]} 31. Qxe1 {[%clk 0:00:40.1]} 31... b5
{[%clk 0:00:39]} 32. Qe6+ {[%clk 0:00:36.6]} 32... Kg7 {[%clk 0:00:38.1]} 33.
Rd7+ {[%clk 0:00:36.1]} 33... Kh6 {[%clk 0:00:38.3]} 34. Qh3+ {[%clk 0:00:32.8]}
34... Kg5 {[%clk 0:00:38.4]} 35. Rd5+ {[%clk 0:00:32.5]} 35... Kf6 {[%clk
0:00:38]} 36. Qf3+ {[%clk 0:00:30.6]} 36... Ke6 {[%clk 0:00:37.6]} 37. Rxb5
{[%clk 0:00:27.4]} 37... Rc8 {[%clk 0:00:36.7]} 38. Qd5+ {[%clk 0:00:25.3]}
38... Kf6 {[%clk 0:00:35.9]} 39. Rb7 {[%clk 0:00:20.3]} 39... Ne5 {[%clk
0:00:34.1]} 40. Qd6+ {[%clk 0:00:19.3]} 40... Kf5 {[%clk 0:00:32.4]} 41. Rb5
{[%clk 0:00:16.4]} 41... Re8 {[%clk 0:00:31.8]} 42. Rxa5 {[%clk 0:00:16.2]}
42... Ke4 {[%clk 0:00:31.2]} 43. Ra4+ {[%clk 0:00:14.4]} 43... Kf5 {[%clk
0:00:30.7]} 44. Ra5 {[%clk 0:00:09.2]} 44... h5 {[%clk 0:00:28.7]} 45. Qd5
{[%clk 0:00:08.1]} 45... Kf4 {[%clk 0:00:25.8]} 46. Qd4+ {[%clk 0:00:07.5]}
46... Kf5 {[%clk 0:00:25]} 47. Qd3+ {[%clk 0:00:07.9]} 47... Kf4 {[%clk
0:00:23.6]} 48. Ra4+ {[%clk 0:00:07.1]} 48... Kg5 {[%clk 0:00:22.4]} 49. Qe3+
{[%clk 0:00:06.9]} 49... Kf6 {[%clk 0:00:19.9]} 50. Qf4+ {[%clk 0:00:06.5]}
50... Kg7 {[%clk 0:00:19.6]} 51. Ra5 {[%clk 0:00:05.2]} 51... Ng4+ {[%clk
0:00:19.1]} 52. Kg3 {[%clk 0:00:03.7]} 52... Re3+ {[%clk 0:00:19.1]} 53. Qxe3
{[%clk 0:00:03.1]} 53... Nxe3 {[%clk 0:00:20]} 54. b4 {[%clk 0:00:03.1]} 54...
Kf6 {[%clk 0:00:17]} 55. Ra7 {[%clk 0:00:04]} 55... Nd5 {[%clk 0:00:13.1]} 56.
Kf3 {[%clk 0:00:04.9]} 56... g5 {[%clk 0:00:13.2]} 57. b5 {[%clk 0:00:04.4]}
57... Ke5 {[%clk 0:00:13.1]} 58. Ra6 {[%clk 0:00:03.8]} 58... g4+ {[%clk
0:00:11.3]} 59. Ke2 {[%clk 0:00:03.3]} 59... Nf4+ {[%clk 0:00:10.9]} 60. Kd2
{[%clk 0:00:03.3]} 60... Nxg2 {[%clk 0:00:09.9]} 61. b6 {[%clk 0:00:04.2]} 61...
Kd6 {[%clk 0:00:10.5]} 62. b7+ {[%clk 0:00:04.5]} 62... Kc7 {[%clk 0:00:10.5]}
63. Rb6 {[%clk 0:00:05.4]} 63... Kb8 {[%clk 0:00:09.9]} 64. Rb2 {[%clk
0:00:05.1]} 64... h4 {[%clk 0:00:09.7]} 65. Ke2 {[%clk 0:00:05.4]} 65... Nf4+
{[%clk 0:00:07.4]} 66. Kf2 {[%clk 0:00:05.4]} 66... Nd3+ {[%clk 0:00:07.4]} 67.
Kg2 {[%clk 0:00:05]} 67... Nxb2 {[%clk 0:00:08.3]} 0-1

[Event "*** Titled Tuesday Blitz"]
[Site "Chess.com"]
[Date "2020.11.10"]
[Round "3"]
[White "NewBornNow"]
[Black "ViditYT"]
[Result "1/2-1/2"]
[WhiteElo "2648"]
[BlackElo "2874"]
[TimeControl "180+1"]
[EndTime "10:33:19 PST"]
[Termination "Game drawn by repetition"]

1. e4 {[%clk 0:02:59.7]} 1... c5 {[%clk 0:02:57.2]} 2. Nf3 {[%clk 0:02:59.1]}
2... d6 {[%clk 0:02:57.6]} 3. d4 {[%clk 0:02:58.9]} 3... cxd4 {[%clk 0:02:57.9]}
4. Nxd4 {[%clk 0:02:59.3]} 4... Nf6 {[%clk 0:02:57.5]} 5. Nc3 {[%clk 0:02:59.6]}
5... Nc6 {[%clk 0:02:58.1]} 6. Bg5 {[%clk 0:02:58.2]} 6... e6 {[%clk 0:02:58.2]}
7. Qd2 {[%clk 0:02:57.9]} 7... a6 {[%clk 0:02:58.6]} 8. O-O-O {[%clk 0:02:56.4]}
8... Bd7 {[%clk 0:02:58.9]} 9. f3 {[%clk 0:02:56.2]} 9... Be7 {[%clk 0:02:57.6]}
10. Be3 {[%clk 0:02:54.2]} 10... b5 {[%clk 0:02:55.3]} 11. Nxc6 {[%clk
0:02:53.7]} 11... Bxc6 {[%clk 0:02:55.2]} 12. Ne2 {[%clk 0:02:54]} 12... Bb7
{[%clk 0:02:52.1]} 13. Nd4 {[%clk 0:02:53.6]} 13... O-O {[%clk 0:02:51.7]} 14.
Kb1 {[%clk 0:02:53.7]} 14... Nd7 {[%clk 0:02:51.1]} 15. g4 {[%clk 0:02:52.6]}
15... d5 {[%clk 0:02:14.8]} 16. exd5 {[%clk 0:02:52.5]} 16... Bxd5 {[%clk
0:02:15.7]} 17. Be2 {[%clk 0:02:51.3]} 17... Ne5 {[%clk 0:02:09.1]} 18. Rhe1
{[%clk 0:02:45.3]} 18... Bh4 {[%clk 0:02:01.4]} 19. Rf1 {[%clk 0:02:43.4]} 19...
Nc4 {[%clk 0:01:59.9]} 20. Bxc4 {[%clk 0:02:37.3]} 20... Bxc4 {[%clk 0:02:00.6]}
21. Rg1 {[%clk 0:02:34.3]} 21... Be7 {[%clk 0:01:27.4]} 22. Nc6 {[%clk
0:02:32.6]} 22... Qc7 {[%clk 0:01:27.1]} 23. Qd7 {[%clk 0:02:29.5]} 23... Qxd7
{[%clk 0:01:22.9]} 24. Rxd7 {[%clk 0:02:28.9]} 24... Bh4 {[%clk 0:01:15.3]} 25.
g5 {[%clk 0:02:22.3]} 25... h6 {[%clk 0:00:26.4]} 26. b3 {[%clk 0:02:16.6]}
26... Bd5 {[%clk 0:00:20.7]} 27. Ne7+ {[%clk 0:02:15.6]} 27... Kh7 {[%clk
0:00:21.1]} 28. Nxd5 {[%clk 0:02:14.5]} 28... exd5 {[%clk 0:00:22]} 29. gxh6
{[%clk 0:02:07.6]} 29... g5 {[%clk 0:00:17.4]} 30. f4 {[%clk 0:02:01.6]} 30...
gxf4 {[%clk 0:00:16.2]} 31. Bxf4 {[%clk 0:01:58.5]} 31... Bf6 {[%clk 0:00:16.8]}
32. Rxd5 {[%clk 0:01:53.6]} 32... Rad8 {[%clk 0:00:16.9]} 33. Rf5 {[%clk
0:01:50.8]} 33... Bc3 {[%clk 0:00:15.4]} 34. Rf1 {[%clk 0:01:39.7]} 34... f6
{[%clk 0:00:15]} 35. a3 {[%clk 0:01:36.8]} 35... Rd7 {[%clk 0:00:14.7]} 36. Rc5
{[%clk 0:01:36.4]} 36... Bd4 {[%clk 0:00:14.3]} 37. Rc6 {[%clk 0:01:36.3]} 37...
Rfd8 {[%clk 0:00:14.3]} 38. Rd1 {[%clk 0:01:22.5]} 38... a5 {[%clk 0:00:13.3]}
39. Rc7 {[%clk 0:01:20.7]} 39... Rxc7 {[%clk 0:00:10.1]} 40. Bxc7 {[%clk
0:01:20.2]} 40... Rc8 {[%clk 0:00:11]} 41. Bxa5 {[%clk 0:01:19.5]} 41... Be5
{[%clk 0:00:11.6]} 42. Bd2 {[%clk 0:01:14.4]} 42... Rd8 {[%clk 0:00:11.4]} 43.
Kc1 {[%clk 0:01:13.3]} 43... Ra8 {[%clk 0:00:11.9]} 44. Bb4 {[%clk 0:01:08.3]}
44... Kxh6 {[%clk 0:00:11]} 45. Rd5 {[%clk 0:01:06]} 45... Rb8 {[%clk
0:00:10.7]} 46. h3 {[%clk 0:01:02.9]} 46... Kg6 {[%clk 0:00:10]} 47. Kd2 {[%clk
0:01:00.9]} 47... Kf5 {[%clk 0:00:08.1]} 48. Kd3 {[%clk 0:01:00.6]} 48... Ke6
{[%clk 0:00:08.5]} 49. Rc5 {[%clk 0:00:53.7]} 49... Rh8 {[%clk 0:00:04.4]} 50.
Rxb5 {[%clk 0:00:50.1]} 50... Rxh3+ {[%clk 0:00:04.9]} 51. Kc4 {[%clk
0:00:50.2]} 51... Rh4+ {[%clk 0:00:04.9]} 52. Kc5 {[%clk 0:00:49.1]} 52... Bd4+
{[%clk 0:00:04.2]} 53. Kc6 {[%clk 0:00:47.9]} 53... f5 {[%clk 0:00:05.1]} 54.
Rb8 {[%clk 0:00:43.7]} 54... f4 {[%clk 0:00:05.3]} 55. Re8+ {[%clk 0:00:43.1]}
55... Kf5 {[%clk 0:00:05.6]} 56. c3 {[%clk 0:00:39.1]} 56... Bf6 {[%clk
0:00:04.9]} 57. Bc5 {[%clk 0:00:37.3]} 57... Bxc3 {[%clk 0:00:03.6]} 58. Rf8+
{[%clk 0:00:34.7]} 58... Ke4 {[%clk 0:00:03.8]} 59. b4 {[%clk 0:00:33.2]} 59...
f3 {[%clk 0:00:03.7]} 60. b5 {[%clk 0:00:31.9]} 60... Rh6+ {[%clk 0:00:02.7]}
61. Kb7 {[%clk 0:00:30.3]} 61... Rh7+ {[%clk 0:00:03.2]} 62. Ka6 {[%clk
0:00:29.3]} 62... Rh6+ {[%clk 0:00:03.6]} 63. b6 {[%clk 0:00:29.3]} 63... Be5
{[%clk 0:00:03.8]} 64. Kb5 {[%clk 0:00:26.4]} 64... Rh1 {[%clk 0:00:02.8]} 65.
a4 {[%clk 0:00:25.6]} 65... Rb1+ {[%clk 0:00:03.1]} 66. Ka6 {[%clk 0:00:25.1]}
66... Rc1 {[%clk 0:00:03.5]} 67. Kb5 {[%clk 0:00:22.8]} 67... Rb1+ {[%clk
0:00:02.8]} 68. Kc6 {[%clk 0:00:22.9]} 68... Rc1 {[%clk 0:00:03]} 69. Kb5 {[%clk
0:00:20.6]} 69... Rb1+ {[%clk 0:00:02.9]} 1/2-1/2

[Event "*** Titled Tuesday Blitz"]
[Site "Chess.com"]
[Date "2020.11.10"]
[Round "3"]
[White "KuzubovYuriy"]
[Black "asms9699"]
[Result "1-0"]
[WhiteElo "2830"]
[BlackElo "2558"]
[TimeControl "180+1"]
[EndTime "10:33:25 PST"]
[Termination "KuzubovYuriy won by resignation"]

1. d4 {[%clk 0:03:00.9]} 1... d5 {[%clk 0:02:59.6]} 2. c4 {[%clk 0:03:00.5]}
2... c6 {[%clk 0:02:59.8]} 3. Nf3 {[%clk 0:03:00.5]} 3... Nf6 {[%clk 0:03:00]}
4. Nc3 {[%clk 0:03:00.6]} 4... a6 {[%clk 0:03:00.5]} 5. cxd5 {[%clk 0:02:57.6]}
5... cxd5 {[%clk 0:03:00.4]} 6. Bf4 {[%clk 0:02:58.2]} 6... Nc6 {[%clk 0:03:01]}
7. e3 {[%clk 0:02:58.7]} 7... Bg4 {[%clk 0:03:00.7]} 8. Be2 {[%clk 0:02:57.7]}
8... Bxf3 {[%clk 0:02:53.7]} 9. Bxf3 {[%clk 0:02:56.9]} 9... e6 {[%clk
0:02:54.3]} 10. O-O {[%clk 0:02:56.2]} 10... Bd6 {[%clk 0:02:54.3]} 11. Bg5
{[%clk 0:02:55.8]} 11... O-O {[%clk 0:02:54.1]} 12. Rc1 {[%clk 0:02:55.2]} 12...
Rc8 {[%clk 0:02:54]} 13. Be2 {[%clk 0:02:54.9]} 13... Na5 {[%clk 0:02:44.6]} 14.
Bd3 {[%clk 0:02:49.1]} 14... h6 {[%clk 0:02:35.1]} 15. Bh4 {[%clk 0:02:48.5]}
15... Nc4 {[%clk 0:02:33.5]} 16. Qe2 {[%clk 0:02:48.3]} 16... b5 {[%clk
0:02:25.2]} 17. Rfd1 {[%clk 0:02:33.4]} 17... Be7 {[%clk 0:02:18]} 18. b3 {[%clk
0:02:19.5]} 18... Nb6 {[%clk 0:01:52.7]} 19. Qb2 {[%clk 0:02:11.9]} 19... Qd7
{[%clk 0:01:39.2]} 20. Bf1 {[%clk 0:01:55.6]} 20... Rc7 {[%clk 0:01:28.9]} 21.
Ne2 {[%clk 0:01:49.8]} 21... Rfc8 {[%clk 0:01:23.5]} 22. f3 {[%clk 0:01:44.8]}
22... Bd6 {[%clk 0:01:09.4]} 23. Be1 {[%clk 0:01:33.4]} 23... Rxc1 {[%clk
0:00:52]} 24. Rxc1 {[%clk 0:01:26.4]} 24... b4 {[%clk 0:00:46.5]} 25. Rxc8+
{[%clk 0:01:22]} 25... Qxc8 {[%clk 0:00:43.7]} 26. Nc1 {[%clk 0:01:20.8]} 26...
a5 {[%clk 0:00:39.9]} 27. Nd3 {[%clk 0:01:20.6]} 27... Qc7 {[%clk 0:00:37.6]}
28. g3 {[%clk 0:01:20.1]} 28... Nfd7 {[%clk 0:00:36.5]} 29. Qc1 {[%clk
0:01:17.3]} 29... Qxc1 {[%clk 0:00:30.8]} 30. Nxc1 {[%clk 0:01:17.4]} 30... Kf8
{[%clk 0:00:31.3]} 31. Kf2 {[%clk 0:01:15.1]} 31... Ke7 {[%clk 0:00:31.7]} 32.
Ke2 {[%clk 0:01:12.1]} 32... g6 {[%clk 0:00:31.4]} 33. Nd3 {[%clk 0:01:06.6]}
33... f5 {[%clk 0:00:27.4]} 34. h3 {[%clk 0:01:02.7]} 34... Kf6 {[%clk
0:00:26.4]} 35. Bg2 {[%clk 0:01:01.4]} 35... Nc8 {[%clk 0:00:24.1]} 36. e4
{[%clk 0:01:00.1]} 36... Kf7 {[%clk 0:00:15.5]} 37. g4 {[%clk 0:00:49.9]} 37...
Ne7 {[%clk 0:00:14.8]} 38. Bd2 {[%clk 0:00:40.7]} 38... g5 {[%clk 0:00:10.5]}
39. gxf5 {[%clk 0:00:39.1]} 39... exf5 {[%clk 0:00:08.5]} 40. e5 {[%clk
0:00:39]} 40... Bc7 {[%clk 0:00:08]} 41. h4 {[%clk 0:00:29.9]} 41... gxh4 {[%clk
0:00:04.1]} 42. f4 {[%clk 0:00:26.6]} 42... Nf8 {[%clk 0:00:03.5]} 43. Be3
{[%clk 0:00:25.8]} 43... Ne6 {[%clk 0:00:03.9]} 44. Ne1 {[%clk 0:00:17.4]} 44...
Bb6 {[%clk 0:00:04]} 45. Nc2 {[%clk 0:00:15.6]} 45... h3 {[%clk 0:00:04.1]} 46.
Bxh3 {[%clk 0:00:15.1]} 46... Ng6 {[%clk 0:00:04.4]} 47. Bxf5 {[%clk 0:00:14.8]}
47... Ngxf4+ {[%clk 0:00:03.4]} 48. Kf3 {[%clk 0:00:14.4]} 48... Ng6 {[%clk
0:00:02.6]} 49. Kg4 {[%clk 0:00:12.2]} 49... Ne7 {[%clk 0:00:02.8]} 50. Bd3
{[%clk 0:00:10.8]} 50... Nc6 {[%clk 0:00:02.7]} 51. Bxh6 {[%clk 0:00:09.8]}
51... Ncxd4 {[%clk 0:00:03]} 52. Nxd4 {[%clk 0:00:08.8]} 52... Bxd4 {[%clk
0:00:03.9]} 53. Kf5 {[%clk 0:00:08.5]} 53... Ng7+ {[%clk 0:00:04.1]} 54. Kf4
{[%clk 0:00:08.4]} 54... Ne6+ {[%clk 0:00:04.1]} 55. Kf5 {[%clk 0:00:08.3]}
55... Ng7+ {[%clk 0:00:04.7]} 56. Bxg7 {[%clk 0:00:08.8]} 56... Kxg7 {[%clk
0:00:05.6]} 57. Ke6 {[%clk 0:00:09.3]} 57... Kf8 {[%clk 0:00:05.8]} 58. Kxd5
{[%clk 0:00:09.7]} 58... Bc3 {[%clk 0:00:06.4]} 59. Bc4 {[%clk 0:00:09.7]} 59...
Ke7 {[%clk 0:00:06.8]} 60. e6 {[%clk 0:00:10.2]} 60... Bd2 {[%clk 0:00:07.1]}
61. Kc6 {[%clk 0:00:09.9]} 61... Bf4 {[%clk 0:00:07.3]} 62. Kb6 {[%clk 0:00:10]}
62... Bd6 {[%clk 0:00:06.3]} 63. Kxa5 {[%clk 0:00:10.2]} 63... Kd8 {[%clk
0:00:06.8]} 64. Ka4 {[%clk 0:00:10.2]} 64... Be7 {[%clk 0:00:07.2]} 65. a3
{[%clk 0:00:09.9]} 65... bxa3 {[%clk 0:00:06.6]} 66. b4 {[%clk 0:00:10.5]} 66...
Kc7 {[%clk 0:00:06.9]} 67. Kxa3 {[%clk 0:00:10.9]} 67... Kb6 {[%clk 0:00:07.5]}
68. Kb3 {[%clk 0:00:11.2]} 68... Bd6 {[%clk 0:00:07.4]} 69. Kc3 {[%clk
0:00:11.3]} 69... Be7 {[%clk 0:00:07.8]} 70. b5 {[%clk 0:00:09.6]} 70... Kc5
{[%clk 0:00:08.1]} 71. Kd3 {[%clk 0:00:09.3]} 71... Bd8 {[%clk 0:00:07.6]} 72.
Ke4 {[%clk 0:00:08.5]} 72... Kd6 {[%clk 0:00:07.6]} 73. Kf5 {[%clk 0:00:07.7]}
73... Be7 {[%clk 0:00:05.4]} 74. Bd3 {[%clk 0:00:07.6]} 74... Bd8 {[%clk
0:00:05.1]} 75. Be4 {[%clk 0:00:07.8]} 75... Bh4 {[%clk 0:00:04.1]} 76. b6
{[%clk 0:00:07.7]} 76... Bd8 {[%clk 0:00:04.4]} 77. b7 {[%clk 0:00:07.6]} 77...
Kc7 {[%clk 0:00:03.7]} 78. Kg6 {[%clk 0:00:07.2]} 78... Be7 {[%clk 0:00:04]} 79.
Kf7 {[%clk 0:00:07.4]} 79... Bd6 {[%clk 0:00:04.1]} 80. e7 {[%clk 0:00:07.7]}
1-0